Cogmind - Beta 13 @@@ ROGUE MODE // 2024.07.06 @ 17:21:33 Player: Venar246 Result: Self-destructed Performance ------------- Evolutions (2) 1000 Regions Visited (3) 600 Robots Destroyed (7) 35 Value Destroyed (175) 175 Prototype IDs (0) 0 Alien Tech Used (0) 0 Bonus (0) 0 TOTAL SCORE: 1810 Bonus ------- None Cogmind --------- Core Integrity 265/550 Matter 106/300 Energy 100/100 System Corruption 4% Temperature Cool (0) Movement Core (200) Ox3 Location -8/Materials Parts ------- > --- POWER (1) -------- (None) > --- PROPULSION (4) --- (None) > --- UTILITY (4) ------ Medium Storage Unit Core Analyzer > --- WEAPON (2) ------- (None) > --- INVENTORY (10) --- Medium Storage Unit Huge Storage Unit Sensor Array Terrain Scanner Core Analyzer Component Analysis Suite Recalibrator Peak State ------------ > --- POWER ------------ (None) > --- PROPULSION ------- Aluminum Leg > --- UTILITY ---------- Medium Storage Unit Core Analyzer Core Analyzer Core Analyzer > --- WEAPON ----------- Mining Laser > --- INVENTORY -------- Medium Storage Unit Huge Storage Unit Sensor Array Terrain Scanner Core Analyzer Component Analysis Suite Recalibrator [Rating: 16] Favorites ----------- Power None Propulsion Aluminum Leg Leg Aluminum Leg Utility Medium Storage Unit Device Terrain Scanner Storage Medium Storage Unit Processor Core Analyzer Weapon EM Pulse Gun Energy Gun EM Pulse Gun Launcher Rocket Launcher Special Weapon Mining Laser Build | -11 -10 -9 -8 ------- Run | Yrd Mat Mat Mat Slots Evolved 4 | . . 2 2 Power . | . . . . Propulsion 2 | . . 2 . Utility 2 | . . . 2 Weapon . | . . . . Parts Attached 20 | 3 5 8 4 Power . | . . . . Engine . | . . . . Core . | . . . . Reactor . | . . . . Propulsion 5 | 2 . 3 . Treads . | . . . . Leg 5 | 2 . 3 . Wheel . | . . . . Hover . | . . . . Flight . | . . . . Utility 7 | . 1 3 3 Device 2 | . . 2 . Storage 2 | . 1 1 . Processor 3 | . . . 3 Hackware . | . . . . Protection . | . . . . Artifact . | . . . . Weapon 8 | 1 4 2 1 Energy Gun 3 | 1 2 . . Energy Cannon . | . . . . Ballistic Gun . | . . . . Ballistic Cannon . | . . . . Launcher 1 | . . 1 . Special Weapon 4 | . 2 1 1 Impact Weapon . | . . . . Slashing Weapon . | . . . . Piercing Weapon . | . . . . Special Melee Weapon . | . . . . Unidentified Prototypes . | . . . . Parts Lost 12 | . 1 7 4 Power . | . . . . Propulsion 5 | . . 4 1 Utility 3 | . . 1 2 Weapon 4 | . 1 2 1 Highest Loss Streak 4 | . 1 3 4 To Critical Strikes . | . . . . Average Slot Usage (%) 46 | . 46 49 36 Leg 25 | . 28 27 4 Device 2 | . . 6 . Storage 7 | . 4 11 9 Processor 1 | . . . 18 Energy Gun 5 | . 10 . . Launcher 1 | . . 3 . Special Weapon 2 | . 3 1 4 Naked Turns . | . . . . Heaviest Build 85 | 2 82 85 11 Greatest Support 40 | 20 20 40 10 Greatest Overweight (x) 4 | . 4 3 3 Average Overweight (x) . | . . . 1 Largest Inventory Capacity 25 | 5 25 25 10 Average Capacity 12 | 5 11 15 10 Most Carried 8 | . 7 8 8 Average Carried 4 | . 4 5 6 Final Capacity 25 | 5 25 10 10 Final Carried 7 | . 7 5 7 Class Distribution -------------------- 100% | Mutant Dominant Class ---------------- Mutant | -10/Materials Mutant | -9/Materials Mutant | -8/Materials Resources | -11 -10 -9 -8 ----------- Run | Yrd Mat Mat Mat Matter Collected 245 | 150 95 . . Remotely . | . . . . Salvage Created 142 | . 122 20 . Parts 15 | . 11 4 . Haulers Intercepted . | . . . . Recyclers Shooed . | . . . . Parts Field Recycled . | . . . . Retrieved Matter . | . . . . Parts Self-Destructed . | . . . . Prevented . | . . . . Kills | -11 -10 -9 -8 ------- Run | Yrd Mat Mat Mat Combat Hostiles Destroyed 5 | . 4 1 . Guns 4 | . 4 . . AOE 1 | . . 1 . Classes Destroyed 4 | . 3 1 . Watcher 2 | . 1 1 . Swarmer 2 | . 2 . . Grunt 2 | . 2 . . Sentry 1 | . . 1 . Best Kill Streak 2 | . 2 1 . Combat Bots Only 2 | . 2 1 . Max Kills in Single Turn 1 | . 1 1 . Gunslinging . | . . . . Exploded 1 | . . 1 . Melee . | . . . . Uniques/NPCs Destroyed . | . . . . Combat | -11 -10 -9 -8 -------- Run | Yrd Mat Mat Mat Hostile Shots Fired 145 | . 22 79 44 Missed 43 | . 5 25 13 Damage Taken 1594 | . 145 938 511 Core 715 | . 45 385 285 Absorbed by Shields . | . . . . Regen/Repaired (Parts) 12 | . . 12 . Core Remaining (%) 61 | 100 82 3 . Volleys Fired 35 | . 21 13 1 Largest 1 | . 1 1 1 Hottest 100 | . 100 33 100 Shots Fired 35 | . 21 13 1 Gun 17 | . 17 . . Cannon . | . . . . Launcher 10 | . . 10 . Special 8 | . 4 3 1 Kinetic . | . . . . Thermal 8 | . 4 3 1 Explosive 10 | . . 10 . Electromagnetic 17 | . 17 . . Robot Hit Streak 8 | . 3 8 2 Robot Miss Streak 5 | . 5 2 . Penetration Max . | . . . . Secondary Targets . | . . . . Shots Hit Robots 18 | . 7 10 1 Core Hits 10 | . 6 4 . Critical Kills . | . . . . Critical Parts Destroyed . | . . . . Critical Strikes . | . . . . Melee Attacks . | . . . . Impact . | . . . . Slashing . | . . . . Piercing . | . . . . Sneak Attacks . | . . . . Combat Hostiles . | . . . . Follow-up Attacks . | . . . . Damage Inflicted 340 | . 104 212 24 Guns 98 | . 98 . . Cannons . | . . . . Explosions 202 | . . 202 . Melee . | . . . . Ramming 13 | . 6 7 . Kinetic . | . . . . Thermal 27 | . . 3 24 Explosive 202 | . . 202 . Electromagnetic 98 | . 98 . . Impact . | . . . . Slashing . | . . . . Piercing . | . . . . Highest Corruption 4 | . . . 4 Average Corruption 3 | . . . 3 Corruption Purged . | . . . . Corruption Blocked . | . . . . Effects 2 | . . . 2 Message Errors 1 | . . . 1 Matter Fused 1 | . . . 1 Overload Shots . | . . . . Overflow Damage 10 | . . 10 . Projectiles . | . . . . Explosions 10 | . . 10 . Melee . | . . . . Knockbacks 1 | . . 1 . Impact 1 | . . 1 . Kinetic . | . . . . Secondary . | . . . . Self-Inflicted Damage 195 | . . 195 . Shots 9 | . . 9 . Rammed 1 | . . . 1 Targets Rammed 5 | . 3 1 1 Kicked 4 | . 3 1 . Crushed . | . . . . Highest Temperature 15 | . 1 15 12 Average Temperature 7 | . 1 9 7 Received Heat Transfer 588 | . 12 324 252 Siege Activations . | . . . . Robots Corrupted . | . . . . Combat Hostiles . | . . . . Parts Fried . | . . . . Impact Corruptions . | . . . . Robots Melted . | . . . . Combat Hostiles . | . . . . Parts Melted . | . . . . Heat Transferred 75 | . . 25 50 Parts Sabotaged . | . . . . Parts Stolen . | . . . . Parts Stripped . | . . . . Power Chain Reactions . | . . . . Alert | -11 -10 -9 -8 ------- Run | Yrd Mat Mat Mat Peak Influence 149 | . 149 71 20 Initial 1 | . . 1 . Average 32 | . 47 25 1 Maximum Alert Level . | . . . . Low Security (%) 100 | 100 100 100 100 Level 1 . | . . . . Level 2 . | . . . . Level 3 . | . . . . Level 4 . | . . . . Level 5 . | . . . . High Security . | . . . . Max Security . | . . . . Squads Dispatched 3 | . 2 1 . Investigation 2 | . 1 1 . Extermination . | . . . . Reinforcement 1 | . 1 . . Assault . | . . . . Garrison . | . . . . Intercept . | . . . . Searches Triggered . | . . . . Construction Impeded . | . . . . Haulers Reinforced . | . . . . Active Scanning Responses . | . . . . Cargo Convoy Interrupts . | . . . . Stealth | -11 -10 -9 -8 --------- Run | Yrd Mat Mat Mat Distress Signals 1 | . . . 1 Communications Jammed . | . . . . Distress Signals . | . . . . Times Spotted 20 | . 9 4 7 Peak Tracking Total 6 | . 3 2 6 Tactical Retreats 1 | . 1 . . Traps | -11 -10 -9 -8 ------- Run | Yrd Mat Mat Mat Traps Triggered 1 | . . 1 . Indirectly . | . . . . Trap Hack Attempts . | . . . . Triggered . | . . . . Disarmed . | . . . . Reprogrammed 4 | . 4 . . Reused . | . . . . Traps Extracted . | . . . . Installed . | . . . . Triggered . | . . . . Machines | -11 -10 -9 -8 ---------- Run | Yrd Mat Mat Mat Machines Disabled 1 | . . 1 . Max in Single Turn 1 | . . 1 . Machines Repaired . | . . . . Machines Dismantled . | . . . . Machines Sabotaged . | . . . . Overloaded Fab Kills . | . . . . Hacking | -11 -10 -9 -8 --------- Run | Yrd Mat Mat Mat Machines Accessed 4 | . 2 2 . Terminals 3 | . 2 1 . Fabricators . | . . . . Repair Stations 1 | . . 1 . Recycling Units . | . . . . Scanalyzers . | . . . . Garrison Access . | . . . . Total Hacks 11 | . 6 5 . Successful 8 | . 4 4 . Failed 3 | . 2 1 . Catastrophic 1 | . . 1 . Database Lockouts . | . . . . Manual . | . . . . Terminals 8 | . 6 2 . Fabricators . | . . . . Repair Stations 3 | . . 3 . Recycling Units . | . . . . Scanalyzers . | . . . . Garrison Access . | . . . . Terminal Hacks 6 | . 4 2 . Record 1 | . 1 . . Emergency Access Points 1 | . . 1 . Reprogram Traps 1 | . 1 . . Hauler Manifests 1 | . . 1 . Zone Layout 2 | . 2 . . Fabricator Hacks . | . . . . Repair Station Hacks 2 | . . 2 . Scan Component 1 | . . 1 . Repair 1 | . . 1 . Recycling Unit Hacks . | . . . . Scanalyzer . | . . . . Garrison Access Hacks . | . . . . Unauthorized Hacks . | . . . . Terminals . | . . . . Fabricators . | . . . . Repair Stations . | . . . . Recycling Units . | . . . . Scanalyzers . | . . . . Garrison Access . | . . . . Data Cores Recovered . | . . . . Used . | . . . . Hacking Detections 3 | . 2 1 . Full Trace Events 1 | . 1 . . Feedback Events . | . . . . Feedback Blocked . | . . . . Robot Schematics Acquired . | . . . . Robots Built . | . . . . Authchips . | . . . . Time . | . . . . Total Robot Build Rating . | . . . . Part Schematics Acquired . | . . . . Parts Built . | . . . . Authchips . | . . . . Time . | . . . . Total Part Build Rating . | . . . . Parts Repaired 1 | . . 1 . Time 36 | . . 36 . Parts Recycled . | . . . . Recycled Matter . | . . . . Retrieved Matter . | . . . . Retrieved Components . | . . . . Parts Scanalyzed . | . . . . Part Schematics Acquired . | . . . . Parts Damaged . | . . . . Bothacking | -11 -10 -9 -8 ------------ Run | Yrd Mat Mat Mat Used RIF Installer . | . . . . Robots Hacked . | . . . . Non-combat . | . . . . Combat . | . . . . Robot Hacks Applied . | . . . . Relay Couplers Released . | . . . . Fabnet Peak Effective % . | . . . . Robots Rewired . | . . . . Allies Hacked . | . . . . Hacks Repelled . | . . . . Allies | -11 -10 -9 -8 -------- Run | Yrd Mat Mat Mat Total Allies . | . . . . Largest Group . | . . . . Highest-Rated Group . | . . . . Highest-Rated Ally . | . . . . Total Orders . | . . . . Ally Attacks . | . . . . Total Damage . | . . . . Kills . | . . . . Allies Corrupted . | . . . . Allies Melted . | . . . . Intel | -11 -10 -9 -8 ------- Run | Yrd Mat Mat Mat Robot Analysis Total . | . . . . Derelict Logs Recovered . | . . . . Drone Launches . | . . . . Drone Recoveries . | . . . . Exploration | -11 -10 -9 -8 ------------- Run | Yrd Mat Mat Mat Turns Passed 1285 | 70 614 480 121 Spaces Moved 741 | 63 343 270 65 Core 79 | 13 . 39 27 Treads . | . . . . Legs 662 | 50 343 231 38 Wheels . | . . . . Hover . | . . . . Flight . | . . . . Fastest Speed 50 | 50 120 120 120 Average Speed 154 | 105 158 161 158 Slowest Speed 400 | 120 400 260 200 Overloaded Moves . | . . . . Propulsion Burnouts . | . . . . Robots Hopped . | . . . . Cave-ins Triggered . | . . . . Exploration Rate (%) 14 | 4 27 22 6 Regions Visited 3 Branch Regions . Pre-discovered Areas . | . . . . Known Exits Taken . | . . . . Unknown Exits Taken 3 | 1 1 1 . Scrap Searched . | . . . . Spaces Dug 2 | . 2 . . Terrain Destroyed 65 | . 2 63 . Melee . | . . . . Projectile 2 | . 2 . . AOE 63 | . . 63 . Terrain Rammed . | . . . . Walls Destroyed . | . . . . Machines Disabled . | . . . . Actions | -11 -10 -9 -8 --------- Run | Yrd Mat Mat Mat Total 830 | 65 385 301 79 Wait . | . . . . Move 738 | 62 342 269 65 Hop . | . . . . Pick Up 23 | . 9 7 7 Fast Attach 3 | 3 . . . Attach 16 | . 5 7 4 Detach 5 | . 4 1 . Swap 1 | . . 1 . Drop 4 | . 1 2 1 Fire 35 | . 21 13 1 Melee . | . . . . Ram 1 | . . . 1 Kick 4 | . 3 1 . Crush . | . . . . Escape Stasis . | . . . . Rewire . | . . . . Trap . | . . . . Miscellaneous . | . . . . Route ------- -11/Scrapyard -10/Materials (discovered 2 exits: *Mat / [Min]) -9/Materials -8/Materials History --------- Turn | Location | Event 6 | -11/Scrapyard | Discovered new exit (range 15) 71 | -11/Scrapyard | Entered Materials 318 | -10/Materials | Build established: Mutant 362 | -10/Materials | Discovered new exit (range 3) 440 | -10/Materials | Discovered new exit (range 17) 685 | -10/Materials | Entered another Materials area 685 | -9/Materials | Evolved 2 slots: Propulsion x2 784 | -9/Materials | Repaired Corrupted Aluminum Leg 1042 | -9/Materials | Lost 3 parts (2n1w) 1049 | -9/Materials | Core integrity fell below 50% 1100 | -9/Materials | Core integrity fell below 20% 1143 | -9/Materials | Discovered new exit (range 16) 1165 | -9/Materials | Entered another Materials area 1165 | -8/Materials | Evolved 2 slots: Utility x2 1286 | -8/Materials | Core integrity fell below 50% 1286 | -8/Materials | Self-destructed Last Messages --------------- effect, e.g. attaching both Core Analyzer and Core Analyzer does not fully combine the effects of both (all such effects are marked ). Acquired Recalibrator. Acquired Component Analysis Suite. Dropped Component Analysis Suite. Acquired Core Analyzer. Aluminum Leg destroyed. Slammed into B-36 Bruiser. Core Analyzer destroyed. System corrupted by crushing effect (+2). System corrupted: Matter fused (-7). Core Analyzer destroyed. System corrupted by crushing effect (+2). Knocked back. Mining Laser destroyed. Critical hit (Burn: +37). W-25 Informer sends out distress signal. TDQ2F5&A/LZFR>L/BM2ZGCELHXV Map ----- +----------------------------------------------------+ | ???????????????????????????????????????? | | ???????????????????????????????????????? | | ???????????????????????????????????????? | | ???????????????????????????????????????? | | ???????????????????????????????????????? | | ???????????????????????????????????????? | | ?????# ###############+######+######## | | ?????? | | ?????????????# | | ?????????????# | | ?????????????## ###### #### #???? | | ??????????????# #????# #??????????? | | ??????????????# #????# !!!!#??????????? | | ??????????????# #????# ! !#??????????? | | ??????????????# #????########??????????? | | ??????????????# #??????????????????????? | | ??????????????# #??????????????????????? | | ??????????????# #??????????????????????? | | ??????????????# #??????????????????????? | | ??????????????#g#??????????????????????? | | ??????????????# #??????????????????????? | | ??????????????# #??????????????????????? | | ??????????????# #??????????????????????? | | ??????????????#b#??????????????????????? | | ?????????????##g######+#???????????????? | | ?????????????# @ w r +????????? | | ?????????????# #??????????????? | | ?????????????# #??????????????? | | ?????????????# ########??????????????? | | ?????????????# g#?????????????????????? | | ?????????????# #?????????????????????? | | ?????????????#gY #?????????????????????? | | ????????????? ?????????????????????? | | ????????????? ?????????????????????? | | ????????????? a ?????????????????????? | | ????????????? u ?????????????????????? | | ????????????# #????????????????????? | | ????????????## ##????????????????????? | | ?????????????? ??????????????????????? | | ?????????????? ??????????????????????? | | ?????????????? ??????????????????????? | | ???????????????????????????????????????? | | ???????????????????????????????????????? | | ???????????????????????????????????????? | | ???????????????????????????????????????? | | ???????????????????????????????????????? | | ???????????????????????????????????????? | | ???????????????????????????????????????? | | ???????????????????????????????????????? | | ???????????????????????????????????????? | +----------------------------------------------------+ Best States ------------- Heat Dissipation 31 Energy Generation 5 Energy Capacity 100 Matter Stores 282 Matter Capacity 300 Sight Range 16 Terrain Scan Range 14 Terrain Scan Density 10 Evasion (%) 55 Core Analysis 9 Item Schematics ----------------- None Robot Schematics ------------------ None Fabricated ------------ Nothing Alien Tech Used ----------------- None Achievements -------------- Shopping List Challenges ------------ None Game ------ Seed EtherialTrackerSegregator Manual? 0 Play Time 00:10:39 Cumulative 2.0 hours Start 2024.07.06 @ 17:11:21 End 2024.07.06 @ 17:21:33 Sessions 1 Manual Loads 0 Difficulty Rogue Special Mode None Game No. 8 Rogue 8 Adventurer 0 Explorer 0 Win Type - Total 0 Types 0/0/0/0/0/0/0/0/0 Lore% 0 Gallery% 7 Achievement% 6 Wizard Run 0 Options --------- Layout 1 ASCII 0 Keyboard 0 Movement Arrows Keybinds 0 Fullscreen 1 Font 32/SmallcapsGlow Map View 50x35 Zoom Use 0% Tactical HUD 0 Map Filters NONE Filters NONE Steam 1 RUN: 8e84fdfc-e1b0-4bdb-81a1-65cdd00e106d